[Event "Nové Hrady - Open"]
[Site "Nové Hrady, Czech Republic"]
[Date "2024.08.16"]
[Round "6.1"]
[White "Šebesta, Marek"]
[Black "Šimůnek, Jakub Šimon"]
[Result "0-1"]
[TimeControl "2x90min+30s"]
[WhiteFideId "23765119"]
[BlackFideId "23709464"]
[WhiteElo "1495"]
[BlackElo "2042"]

1. e4 {[%clk 01:30:58]} e6 {[%clk 01:30:55]} {[%emt 00:00:06]} 2. d4 {[%clk
01:31:23]} {[%emt 00:00:05]} d5 {[%clk 01:31:21]} {[%emt 00:00:04]} 3. e5
{[%clk 01:31:47]} {[%emt 00:00:06]} c5 {[%clk 01:31:46]} {[%emt 00:00:05]} 4.
c3 {[%clk 01:32:10]} {[%emt 00:00:07]} Nc6 {[%clk 01:32:12]} {[%emt 00:00:05]}
5. Nf3 {[%clk 01:32:31]} {[%emt 00:00:09]} Qb6 {[%clk 01:32:36]} {[%emt
00:00:05]} 6. a3 {[%clk 01:31:59]} {[%emt 00:01:02]} c4 {[%clk 01:32:51]}
{[%emt 00:00:15]} 7. Be2 {[%clk 01:29:18]} {[%emt 00:03:12]} Na5 {[%clk
01:33:13]} {[%emt 00:00:07]} 8. Nbd2 {[%clk 01:27:00]} {[%emt 00:02:47]} Bd7
{[%clk 01:33:37]} {[%emt 00:00:07]} 9. O-O {[%clk 01:25:02]} {[%emt 00:02:28]}
Ne7 {[%clk 01:32:28]} {[%emt 00:01:39]} 10. Qc2 {[%clk 01:20:30]} {[%emt
00:05:02]} h6 {[%clk 01:28:11]} {[%emt 00:04:47]} 11. a4 {[%clk 01:13:40]}
{[%emt 00:07:20]} Nc8 {[%clk 01:16:57]} {[%emt 00:11:44]} 12. Bd1 {[%clk
01:11:27]} {[%emt 00:02:43]} Qc7 {[%clk 01:11:58]} {[%emt 00:05:29]} 13. b4
{[%clk 01:04:49]} {[%emt 00:07:07]} cxb3 {[%clk 00:53:40]} {[%emt 00:18:49]} 14.
Nxb3 {[%clk 01:00:47]} {[%emt 00:04:32]} Be7 {[%clk 00:47:56]} {[%emt
00:06:14]} 15. Nxa5 {[%clk 00:51:41]} {[%emt 00:09:35]} Qxa5 {[%clk 00:48:17]}
{[%emt 00:00:09]} 16. Bd2 {[%clk 00:49:42]} {[%emt 00:02:30]} Qc7 {[%clk
00:48:31]} {[%emt 00:00:16]} 17. a5 {[%clk 00:44:51]} {[%emt 00:05:21]} Bb5
{[%clk 00:48:00]} {[%emt 00:01:01]} 18. Re1 {[%clk 00:43:18]} {[%emt 00:02:03]}
a6 {[%clk 00:47:41]} {[%emt 00:00:49]} 19. Qb2 {[%clk 00:37:00]} {[%emt
00:06:48]} Na7 {[%clk 00:45:30]} {[%emt 00:02:41]} 20. Bc2 {[%clk 00:33:15]}
{[%emt 00:04:15]} Nc6 {[%clk 00:35:00]} {[%emt 00:11:00]} 21. Reb1 {[%clk
00:30:53]} {[%emt 00:02:52]} Rb8 {[%clk 00:31:25]} {[%emt 00:04:05]} 22. Ba4
{[%clk 00:27:23]} {[%emt 00:04:00]} Bxa4 {[%clk 00:26:50]} {[%emt 00:05:04]} 23.
Rxa4 {[%clk 00:26:34]} {[%emt 00:01:19]} Nxa5 {[%clk 00:24:49]} {[%emt
00:02:33]} 24. g3 {[%clk 00:22:01]} {[%emt 00:05:02]} Nc4 {[%clk 00:24:18]}
{[%emt 00:01:01]} 25. Qb3 {[%clk 00:21:50]} {[%emt 00:00:41]} O-O {[%clk
00:22:44]} {[%emt 00:02:03]} 26. Be1 {[%clk 00:18:55]} {[%emt 00:03:24]} Qc6
{[%clk 00:19:07]} {[%emt 00:04:09]} 27. Rba1 {[%clk 00:17:03]} {[%emt
00:02:21]} a5 {[%clk 00:17:45]} {[%emt 00:01:52]} 28. Nd2 {[%clk 00:14:49]}
{[%emt 00:02:45]} b5 {[%clk 00:18:09]} {[%emt 00:00:06]} 29. R4a2 {[%clk
00:15:03]} {[%emt 00:00:15]} a4 {[%clk 00:17:59]} {[%emt 00:00:40]} 30. Qc2
{[%clk 00:15:06]} {[%emt 00:00:27]} Nb6 {[%clk 00:13:49]} {[%emt 00:04:40]} 31.
f4 {[%clk 00:13:55]} {[%emt 00:01:42]} Rfc8 {[%clk 00:13:28]} {[%emt 00:00:50]}
32. Rc1 {[%clk 00:11:47]} {[%emt 00:02:38]} Ra8 {[%clk 00:09:44]} {[%emt
00:04:15]} 33. Nf3 {[%clk 00:07:35]} {[%emt 00:04:42]} Rc7 {[%clk 00:07:07]}
{[%emt 00:03:07]} 34. Bd2 {[%clk 00:06:01]} {[%emt 00:02:04]} b4 {[%clk
00:03:20]} {[%emt 00:04:17]} 35. cxb4 {[%clk 00:05:31]} {[%emt 00:00:59]} Qxc2
{[%clk 00:03:48]} {[%emt 00:00:02]} 36. Rcxc2 {[%clk 00:05:25]} {[%emt
00:00:36]} Rxc2 {[%clk 00:04:15]} {[%emt 00:00:04]} 37. Rxc2 {[%clk 00:05:44]}
{[%emt 00:00:11]} a3 {[%clk 00:04:39]} {[%emt 00:00:05]} 38. Ra2 {[%clk
00:05:43]} {[%emt 00:00:32]} Nc4 {[%clk 00:04:44]} {[%emt 00:00:25]} 39. Bc3
{[%clk 00:05:14]} {[%emt 00:00:59]} Rb8 {[%clk 00:04:46]} {[%emt 00:00:28]} 40.
Nd2 {[%clk 00:04:53]} {[%emt 00:00:50]} Nxd2 {[%clk 00:05:05]} {[%emt
00:00:11]} 41. Bxd2 {[%clk 00:05:11]} {[%emt 00:00:13]} Bxb4 {[%clk 00:05:31]}
{[%emt 00:00:04]} 42. Bxb4 {[%clk 00:02:53]} {[%emt 00:02:48]} Rxb4 {[%clk
00:05:59]} {[%emt 00:00:02]} 43. Rxa3 {[%clk 00:03:21]} {[%emt 00:00:02]} Rxd4
{[%clk 00:06:23]} {[%emt 00:00:06]} 44. Ra8+ {[%clk 00:02:27]} {[%emt
00:01:24]} Kh7 {[%clk 00:06:44]} {[%emt 00:00:09]} 45. Kg2 {[%clk 00:02:24]}
{[%emt 00:00:33]} Rd2+ {[%clk 00:05:48]} {[%emt 00:01:25]} 46. Kh3 {[%clk
00:02:39]} {[%emt 00:00:16]} g5 {[%clk 00:04:54]} {[%emt 00:01:23]} 47. Ra7
{[%clk 00:01:24]} {[%emt 00:01:45]} Kg6 {[%clk 00:05:05]} {[%emt 00:00:20]} 48.
Rd7 {[%clk 00:01:26]} {[%emt 00:00:28]} Rf2 {[%clk 00:04:01]} {[%emt 00:01:34]}
49. fxg5 {[%clk 00:01:03]} {[%emt 00:00:53]} hxg5 {[%clk 00:04:23]} {[%emt
00:00:07]} 50. g4 {[%clk 00:00:42]} {[%emt 00:00:51]} Re2 {[%clk 00:04:47]}
{[%emt 00:00:06]} 51. Kg3 {[%clk 00:00:43]} Rxe5 {[%clk 00:05:10]} {[%emt
00:00:36]} 52. Kf3 {[%clk 00:01:03]} {[%emt 00:00:11]} Re4 {[%clk 00:05:07]}
{[%emt 00:00:33]} 53. Ra7 {[%clk 00:01:03]} {[%emt 00:00:31]} Rb4 {[%clk
00:05:21]} {[%emt 00:00:15]} 54. Ra3 {[%clk 00:01:11]} {[%emt 00:00:22]} Kf6
{[%clk 00:05:38]} {[%emt 00:00:13]} 55. h3 {[%clk 00:00:59]} {[%emt 00:00:42]}
Ke5 {[%clk 00:04:48]} {[%emt 00:01:20]} 56. Re3+ {[%clk 00:00:58]} {[%emt
00:00:32]} Kd4 {[%clk 00:05:12]} {[%emt 00:00:05]} 57. Re2 {[%clk 00:00:52]}
{[%emt 00:00:35]} Rb3+ {[%clk 00:05:23]} {[%emt 00:00:19]} 58. Kg2 {[%clk
00:01:14]} {[%emt 00:00:08]} e5 {[%clk 00:03:59]} {[%emt 00:01:54]} 59. Rf2
{[%clk 00:01:09]} {[%emt 00:00:36]} e4 {[%clk 00:03:14]} {[%emt 00:01:15]} 60.
Rxf7 {[%clk 00:01:12]} {[%emt 00:00:27]} Ke3 {[%clk 00:02:36]} {[%emt
00:01:08]} 61. h4 {[%clk 00:01:27]} {[%emt 00:00:14]} gxh4 {[%clk 00:02:48]}
{[%emt 00:00:18]} 62. g5 {[%clk 00:01:54]} {[%emt 00:00:03]} Rb6 {[%clk
00:02:20]} {[%emt 00:00:58]} 63. Rf6 {[%clk 00:02:23]} {[%emt 00:00:02]} Rb7
{[%clk 00:02:49]} 64. Ra6 {[%clk 00:02:33]} {[%emt 00:00:21]} d4 {[%clk
00:02:09]} {[%emt 00:01:10]} 65. Ra3+ {[%clk 00:02:51]} {[%emt 00:00:12]} d3
{[%clk 00:02:31]} {[%emt 00:00:08]} 66. Kh3 {[%clk 00:03:12]} {[%emt 00:00:09]}
Ke2 {[%clk 00:02:46]} {[%emt 00:00:14]} 67. Kxh4 {[%clk 00:03:31]} {[%emt
00:00:11]} d2 {[%clk 00:02:57]} {[%emt 00:00:19]} 68. Ra2 {[%clk 00:03:59]}
{[%emt 00:00:03]} Ke1 {[%clk 00:03:20]} {[%emt 00:00:07]} 69. Ra1+ {[%clk
00:04:22]} {[%emt 00:00:07]} d1=Q {[%clk 00:03:36]} {[%emt 00:00:13]} 70. Rxd1+
{[%clk 00:04:45]} {[%emt 00:00:08]} Kxd1 {[%clk 00:04:03]} {[%emt 00:00:03]} 71.
Kg4 {[%clk 00:05:10]} {[%emt 00:00:05]} e3 {[%clk 00:04:25]} {[%emt 00:00:08]}
72. g6 {[%clk 00:05:35]} {[%emt 00:00:04]} e2 {[%clk 00:04:51]} {[%emt
00:00:04]} 73. g7 {[%clk 00:06:02]} {[%emt 00:00:04]} Rxg7+ {[%clk 00:05:17]}
{[%emt 00:00:04]} 0-1

[Event "Nové Hrady - Open"]
[Site "Nové Hrady, Czech Republic"]
[Date "2024.08.16"]
[Round "6.2"]
[White "Žilavý, Jan"]
[Black "Šťastná, Martina"]
[Result "1-0"]
[TimeControl "2x90min+30s"]
[WhiteFideId "350141"]
[BlackFideId "385123"]
[WhiteElo "2127"]
[BlackElo "1945"]

1. e4 {[%clk 01:30:56]} {[%emt 00:00:04]} e5 {[%clk 01:30:51]} {[%emt
00:00:09]} 2. Nf3 {[%clk 01:31:20]} {[%emt 00:00:06]} Nc6 {[%clk 01:31:15]}
{[%emt 00:00:06]} 3. Bb5 {[%clk 01:31:45]} {[%emt 00:00:06]} a6 {[%clk
01:31:37]} {[%emt 00:00:07]} 4. Ba4 {[%clk 01:32:10]} {[%emt 00:00:06]} Nf6
{[%clk 01:31:59]} {[%emt 00:00:08]} 5. O-O {[%clk 01:32:30]} {[%emt 00:00:10]}
b5 {[%clk 01:32:13]} {[%emt 00:00:15]} 6. Bb3 {[%clk 01:32:53]} {[%emt
00:00:06]} Be7 {[%clk 01:32:25]} {[%emt 00:00:19]} 7. Re1 {[%clk 01:33:07]}
{[%emt 00:00:16]} O-O {[%clk 01:32:16]} {[%emt 00:00:39]} 8. c3 {[%clk
01:33:17]} {[%emt 00:00:20]} d6 {[%clk 01:32:12]} {[%emt 00:00:34]} 9. h3
{[%clk 01:33:32]} {[%emt 00:00:15]} Na5 {[%clk 01:32:00]} {[%emt 00:00:42]} 10.
Bc2 {[%clk 01:33:31]} {[%emt 00:00:31]} c5 {[%clk 01:32:02]} {[%emt 00:00:29]}
11. d4 {[%clk 01:33:30]} {[%emt 00:00:31]} Qc7 {[%clk 01:32:16]} {[%emt
00:00:16]} 12. Nbd2 {[%clk 01:33:05]} {[%emt 00:00:55]} Nc6 {[%clk 01:32:07]}
{[%emt 00:00:38]} 13. d5 {[%clk 01:31:35]} {[%emt 00:02:00]} Nd8 {[%clk
01:32:10]} {[%emt 00:00:27]} 14. Nf1 {[%clk 01:31:14]} {[%emt 00:00:51]} Ne8
{[%clk 01:31:58]} {[%emt 00:00:42]} 15. Ng3 {[%clk 01:24:52]} {[%emt 00:06:52]}
g6 {[%clk 01:31:11]} {[%emt 00:01:17]} 16. Bh6 {[%clk 01:21:58]} {[%emt
00:03:24]} Ng7 {[%clk 01:31:26]} {[%emt 00:00:16]} 17. a4 {[%clk 01:20:06]}
{[%emt 00:02:22]} Rb8 {[%clk 01:30:15]} {[%emt 00:01:41]} 18. axb5 {[%clk
01:19:54]} {[%emt 00:00:42]} axb5 {[%clk 01:29:12]} {[%emt 00:01:33]} 19. Qd2
{[%clk 01:15:57]} {[%emt 00:04:27]} f6 {[%clk 01:26:49]} {[%emt 00:02:52]} 20.
b4 {[%clk 01:15:11]} {[%emt 00:01:16]} c4 {[%clk 01:20:52]} {[%emt 00:06:27]}
21. Ra5 {[%clk 01:12:19]} {[%emt 00:03:23]} Nf7 {[%clk 01:17:56]} {[%emt
00:03:26]} 22. Bxg7 {[%clk 01:10:18]} {[%emt 00:02:31]} Kxg7 {[%clk 01:18:15]}
{[%emt 00:00:10]} 23. Rea1 {[%clk 01:10:17]} {[%emt 00:00:32]} Bd7 {[%clk
01:14:17]} {[%emt 00:04:28]} 24. Qe3 {[%clk 01:09:16]} {[%emt 00:01:31]} Rfc8
{[%clk 01:09:19]} {[%emt 00:05:28]} 25. Nh2 {[%clk 01:03:10]} {[%emt 00:06:35]}
Qd8 {[%clk 01:06:48]} {[%emt 00:03:01]} 26. Bd1 {[%clk 01:00:01]} {[%emt
00:03:39]} Ra8 {[%clk 01:02:54]} {[%emt 00:04:24]} 27. Bg4 {[%clk 00:58:43]}
{[%emt 00:01:48]} Rxa5 {[%clk 00:59:55]} {[%emt 00:03:29]} 28. Rxa5 {[%clk
00:59:06]} {[%emt 00:00:07]} Rb8 {[%clk 00:58:11]} {[%emt 00:02:14]} 29. Bxd7
{[%clk 00:50:11]} {[%emt 00:09:26]} Qxd7 {[%clk 00:58:33]} {[%emt 00:00:08]} 30.
Qa7 {[%clk 00:49:13]} {[%emt 00:01:27]} Rb7 {[%clk 00:55:49]} {[%emt 00:03:14]}
31. Qa8 {[%clk 00:49:09]} {[%emt 00:00:34]} Bd8 {[%clk 00:52:08]} {[%emt
00:04:12]} 32. Ra6 {[%clk 00:48:22]} {[%emt 00:01:16]} Bb6 {[%clk 00:45:16]}
{[%emt 00:07:22]} 33. Nhf1 {[%clk 00:46:17]} {[%emt 00:02:35]} Nh6 {[%clk
00:43:48]} {[%emt 00:01:58]} 34. Nd2 {[%clk 00:43:40]} {[%emt 00:03:07]} Ng8
{[%clk 00:42:27]} {[%emt 00:01:52]} 35. Nb1 {[%clk 00:43:27]} {[%emt 00:00:43]}
Ne7 {[%clk 00:42:47]} {[%emt 00:00:10]} 36. Na3 {[%clk 00:43:21]} {[%emt
00:00:35]} Nc8 {[%clk 00:32:29]} {[%emt 00:10:48]} 37. Nxb5 {[%clk 00:40:49]}
{[%emt 00:03:02]} Bxf2+ {[%clk 00:32:39]} {[%emt 00:00:19]} 38. Kxf2 {[%clk
00:41:13]} {[%emt 00:00:07]} Qxb5 {[%clk 00:24:07]} {[%emt 00:09:02]} 39. Rc6
{[%clk 00:37:49]} {[%emt 00:03:54]} Ne7 {[%clk 00:20:49]} {[%emt 00:03:48]} 40.
Rxd6 {[%clk 00:37:49]} {[%emt 00:00:30]} f5 {[%clk 00:19:35]} {[%emt 00:01:45]}
41. exf5 {[%clk 00:36:20]} {[%emt 00:01:58]} Nxd5 {[%clk 00:19:26]} {[%emt
00:00:39]} 42. Qd8 {[%clk 00:36:21]} {[%emt 00:00:29]} Nxc3 {[%clk 00:15:01]}
{[%emt 00:04:56]} 43. Qf6+ {[%clk 00:36:08]} {[%emt 00:00:42]} Kh6 {[%clk
00:15:24]} {[%emt 00:00:06]} 44. fxg6 {[%clk 00:36:13]} {[%emt 00:00:25]} 1-0

[Event "Nové Hrady - Open"]
[Site "Nové Hrady, Czech Republic"]
[Date "2024.08.16"]
[Round "6.3"]
[White "Dudek, Vojtěch"]
[Black "Hrbek, Jáchym"]
[Result "1/2-1/2"]
[TimeControl "2x90min+30s"]
[WhiteFideId "398780"]
[BlackFideId "23709138"]
[WhiteElo "2117"]
[BlackElo "1996"]

1. e4 {[%clk 01:30:56]} {[%emt 00:00:03]} e5 {[%clk 01:30:40]} {[%emt
00:00:20]} 2. Nc3 {[%clk 01:31:17]} {[%emt 00:00:09]} Nf6 {[%clk 01:30:36]}
{[%emt 00:00:32]} 3. Bc4 {[%clk 01:31:18]} {[%emt 00:00:30]} Nxe4 {[%clk
01:30:11]} {[%emt 00:00:55]} 4. Qh5 {[%clk 01:30:54]} {[%emt 00:00:56]} Nd6
{[%clk 01:30:25]} {[%emt 00:00:15]} 5. Qxe5+ {[%clk 01:28:53]} {[%emt
00:02:31]} Qe7 {[%clk 01:30:17]} {[%emt 00:00:38]} 6. Qxe7+ {[%clk 01:29:17]}
{[%emt 00:00:06]} Bxe7 {[%clk 01:30:31]} {[%emt 00:00:16]} 7. Be2 {[%clk
01:29:42]} {[%emt 00:00:04]} Nf5 {[%clk 01:30:05]} {[%emt 00:00:56]} 8. Nf3
{[%clk 01:29:56]} {[%emt 00:00:16]} h5 {[%clk 01:27:16]} {[%emt 00:03:19]} 9.
d4 {[%clk 01:24:49]} {[%emt 00:05:38]} Nc6 {[%clk 01:26:15]} {[%emt 00:01:31]}
10. Nb5 {[%clk 01:17:19]} {[%emt 00:08:00]} Bd8 {[%clk 01:25:40]} {[%emt
00:01:05]} 11. Bf4 {[%clk 01:13:58]} {[%emt 00:03:52]} d6 {[%clk 01:20:02]}
{[%emt 00:06:08]} 12. O-O-O {[%clk 01:04:17]} {[%emt 00:10:10]} a6 {[%clk
01:15:02]} {[%emt 00:05:31]} 13. Nc3 {[%clk 01:03:43]} {[%emt 00:01:03]} Nce7
{[%clk 01:10:51]} {[%emt 00:04:40]} 14. Rhe1 {[%clk 00:56:25]} {[%emt
00:07:49]} O-O {[%clk 01:10:00]} {[%emt 00:01:20]} 15. Bc4 {[%clk 00:47:05]}
{[%emt 00:09:51]} b5 {[%clk 00:56:25]} {[%emt 00:14:05]} 16. Bb3 {[%clk
00:44:12]} {[%emt 00:03:24]} Ng6 {[%clk 00:54:32]} {[%emt 00:02:21]} 17. Bg5
{[%clk 00:43:14]} {[%emt 00:01:29]} c6 {[%clk 00:46:54]} {[%emt 00:08:08]} 18.
Bxd8 {[%clk 00:34:39]} {[%emt 00:09:04]} Rxd8 {[%clk 00:47:15]} {[%emt
00:00:10]} 19. Ne4 {[%clk 00:34:30]} {[%emt 00:00:39]} d5 {[%clk 00:42:01]}
{[%emt 00:05:44]} 20. Nc5 {[%clk 00:30:43]} {[%emt 00:04:17]} f6 {[%clk
00:40:44]} {[%emt 00:01:47]} 21. g3 {[%clk 00:26:17]} {[%emt 00:04:57]} Kf7
{[%clk 00:38:34]} {[%emt 00:02:39]} 22. c3 {[%clk 00:25:47]} {[%emt 00:01:00]}
Nd6 {[%clk 00:38:16]} {[%emt 00:00:49]} 23. Rd3 {[%clk 00:21:50]} {[%emt
00:04:26]} Bg4 {[%clk 00:27:39]} {[%emt 00:11:04]} 24. Nd2 {[%clk 00:17:45]}
{[%emt 00:04:37]} Re8 {[%clk 00:22:53]} {[%emt 00:05:17]} 25. Rde3 {[%clk
00:18:01]} {[%emt 00:00:14]} Nf8 {[%clk 00:22:34]} {[%emt 00:00:48]} 26. Rxe8
{[%clk 00:14:00]} {[%emt 00:04:31]} Nxe8 {[%clk 00:22:44]} {[%emt 00:00:21]} 27.
Bc2 {[%clk 00:14:13]} {[%emt 00:00:16]} Ne6 {[%clk 00:19:27]} {[%emt 00:03:48]}
28. Nxe6 {[%clk 00:13:28]} {[%emt 00:01:16]} Bxe6 {[%clk 00:19:48]} {[%emt
00:00:07]} 29. Bg6+ {[%clk 00:13:44]} {[%emt 00:00:14]} Kxg6 {[%clk 00:20:02]}
{[%emt 00:00:17]} 30. Rxe6 {[%clk 00:14:12]} {[%emt 00:00:02]} Rc8 {[%clk
00:18:35]} {[%emt 00:01:57]} 31. Re7 {[%clk 00:14:13]} {[%emt 00:00:29]} Nd6
{[%clk 00:16:05]} {[%emt 00:03:00]} 32. Ra7 {[%clk 00:08:35]} {[%emt 00:06:08]}
Kf5 {[%clk 00:13:36]} {[%emt 00:02:59]} 33. Rxg7 {[%clk 00:08:11]} {[%emt
00:00:54]} Ne4 {[%clk 00:13:39]} {[%emt 00:00:27]} 34. Nxe4 {[%clk 00:07:07]}
{[%emt 00:01:34]} Kxe4 {[%clk 00:14:01]} {[%emt 00:00:08]} 35. Rh7 {[%clk
00:06:11]} {[%emt 00:01:25]} Kd3 {[%clk 00:13:39]} {[%emt 00:00:53]} 36. Re7
{[%clk 00:06:21]} {[%emt 00:00:21]} b4 {[%clk 00:10:56]} {[%emt 00:03:12]} 37.
Re3+ {[%clk 00:06:38]} {[%emt 00:00:13]} Kc4 {[%clk 00:11:24]} {[%emt
00:00:02]} 38. Kc2 {[%clk 00:04:14]} {[%emt 00:02:54]} bxc3 {[%clk 00:07:09]}
{[%emt 00:04:45]} 39. bxc3 {[%clk 00:04:42]} {[%emt 00:00:02]} c5 {[%clk
00:07:19]} {[%emt 00:00:20]} 40. dxc5 {[%clk 00:04:37]} {[%emt 00:00:35]} Rxc5
{[%clk 00:07:46]} {[%emt 00:00:03]} 41. Rf3 {[%clk 00:04:28]} {[%emt 00:00:38]}
Rc6 {[%clk 00:07:11]} {[%emt 00:01:06]} 42. Rf4+ {[%clk 00:04:48]} {[%emt
00:00:09]} Kc5 {[%clk 00:07:39]} {[%emt 00:00:02]} 43. Kd3 {[%clk 00:04:55]}
{[%emt 00:00:23]} Rb6 {[%clk 00:08:00]} {[%emt 00:00:09]} 44. h4 {[%clk
00:03:56]} {[%emt 00:01:29]} Rb2 {[%clk 00:07:04]} {[%emt 00:01:27]} 45. a4
{[%clk 00:03:36]} {[%emt 00:00:51]} Ra2 {[%clk 00:06:25]} {[%emt 00:01:08]} 46.
f3 {[%clk 00:02:17]} {[%emt 00:01:49]} Rg2 {[%clk 00:03:55]} {[%emt 00:03:00]}
47. g4 {[%clk 00:02:38]} {[%emt 00:00:08]} hxg4 {[%clk 00:04:17]} {[%emt
00:00:09]} 48. fxg4 {[%clk 00:03:07]} Rg3+ {[%clk 00:04:34]} {[%emt 00:00:15]}
49. Kc2 {[%clk 00:03:36]} Rg2+ {[%clk 00:03:32]} {[%emt 00:01:33]} 50. Kb3
{[%clk 00:04:00]} {[%emt 00:00:06]} a5 {[%clk 00:02:16]} {[%emt 00:01:46]} 51.
h5 {[%clk 00:04:07]} {[%emt 00:00:22]} Rg3 {[%clk 00:02:29]} {[%emt 00:00:16]}
52. Kc2 {[%clk 00:01:31]} {[%emt 00:03:07]} Rg2+ {[%clk 00:00:59]} {[%emt
00:02:01]} 53. Kd3 {[%clk 00:02:00]} Rg3+ {[%clk 00:01:08]} {[%emt 00:00:21]}
54. Kd2 {[%clk 00:02:29]} Kd6 {[%clk 00:01:26]} {[%emt 00:00:14]} 55. Rxf6+
{[%clk 00:02:43]} {[%emt 00:00:14]} Ke5 {[%clk 00:01:51]} {[%emt 00:00:06]} 56.
Rf2 {[%clk 00:01:24]} {[%emt 00:01:50]} Rxg4 {[%clk 00:01:43]} {[%emt
00:00:37]} 57. Rh2 {[%clk 00:01:39]} {[%emt 00:00:15]} Rxa4 {[%clk 00:02:01]}
{[%emt 00:00:12]} 58. Kd3 {[%clk 00:02:05]} {[%emt 00:00:04]} Rg4 {[%clk
00:02:15]} {[%emt 00:00:16]} 59. h6 {[%emt 00:00:46]} Rg8 {[%emt 00:01:14]} 60.
Rh5+ {[%clk 00:01:41]} {[%emt 00:00:03]} Kd6 {[%clk 00:01:44]} {[%emt
00:00:51]} 61. h7 {[%clk 00:01:45]} {[%emt 00:00:27]} Rh8 {[%clk 00:02:11]}
{[%emt 00:00:03]} 62. Kd4 {[%clk 00:02:07]} {[%emt 00:00:08]} Kc6 {[%clk
00:02:35]} {[%emt 00:00:05]} 63. Rh6+ {[%clk 00:01:47]} {[%emt 00:00:50]} Kb5
{[%clk 00:02:27]} {[%emt 00:00:39]} 64. Kxd5 {[%clk 00:02:06]} {[%emt
00:00:10]} a4 {[%clk 00:02:40]} {[%emt 00:00:17]} 65. c4+ {[%clk 00:02:15]}
{[%emt 00:00:22]} Kb4 {[%emt 00:01:11]} 66. c5 {[%clk 00:02:02]} {[%emt
00:00:03]} a3 {[%emt 00:00:56]} 67. Rh2 {[%clk 00:01:14]} {[%emt 00:00:26]} Kb3
{[%clk 00:02:19]} {[%emt 00:01:16]} 68. Rh3+ {[%clk 00:00:38]} {[%emt
00:01:06]} Kb2 {[%clk 00:01:45]} {[%emt 00:01:04]} 69. Rh2+ {[%clk 00:01:04]}
{[%emt 00:00:03]} Kb3 {[%emt 00:00:49]} 70. Rh3+ {[%clk 00:00:37]} {[%emt
00:00:14]} Kb2 {[%clk 00:02:34]} {[%emt 00:00:06]} 71. Kc4 {[%clk 00:00:33]}
{[%emt 00:00:34]} a2 {[%clk 00:01:57]} {[%emt 00:01:07]} 72. Rh2+ {[%clk
00:00:54]} {[%emt 00:00:08]} Ka3 {[%clk 00:02:21]} {[%emt 00:00:05]} 73. Rh3+
{[%clk 00:00:48]} {[%emt 00:00:38]} Kb2 {[%clk 00:02:41]} {[%emt 00:00:09]} 74.
Rh2+ {[%clk 00:01:00]} {[%emt 00:00:18]} Ka3 {[%clk 00:03:06]} {[%emt
00:00:05]} 75. Rh1 {[%clk 00:01:17]} {[%emt 00:00:13]} Kb2 {[%clk 00:03:16]}
{[%emt 00:00:21]} 76. c6 {[%clk 00:01:46]} {[%emt 00:00:01]} a1=Q {[%clk
00:03:38]} {[%emt 00:00:09]} 77. Rxa1 {[%clk 00:02:05]} {[%emt 00:00:10]} Kxa1
{[%clk 00:04:02]} {[%emt 00:00:05]} 78. c7 {[%clk 00:02:27]} {[%emt 00:00:09]}
Kb2 {[%clk 00:03:53]} {[%emt 00:00:38]} 79. Kd5 {[%clk 00:02:55]} {[%emt
00:00:03]} Kc3 {[%clk 00:04:10]} {[%emt 00:00:13]} 80. Ke6 {[%clk 00:03:17]}
{[%emt 00:00:07]} Kd4 {[%clk 00:04:29]} {[%emt 00:00:12]} 81. Kf6 {[%clk
00:03:43]} {[%emt 00:00:04]} Rc8 {[%clk 00:04:55]} {[%emt 00:00:05]} 82. Ke6
{[%clk 00:04:09]} {[%emt 00:00:03]} Rh8 {[%clk 00:05:21]} {[%emt 00:00:04]} 83.
Kf6 {[%clk 00:04:29]} {[%emt 00:00:09]} Rc8 {[%clk 00:05:46]} {[%emt 00:00:06]}
84. Ke5+ Kxe5 1/2-1/2